fUST/lending_fUST_20250423
["ID","MTS","AMOUNT","RATE_DAILY","PERIOD"]
[358712748,1745399459571,-500.0,0.00020519,2]
[358712749,1745399459581,-500.0,0.00020519,2]
[358712750,1745399459592,-500.0,0.00020519,2]
[358712751,1745399459602,-500.0,0.00020519,2]
[358712752,1745399459612,-500.0,0.00020519,2]
[358712753,1745399459621,-500.0,0.00020519,2]
[358712754,1745399459631,-500.0,0.00020519,2]
[358712755,1745399459642,-500.0,0.00020519,2]
[358712756,1745399459652,-500.0,0.00020519,2]
[358712757,1745399459662,-515.49639734,0.00020519,2]
[358712758,1745399459671,-500.0,0.00020519,2]
[358712759,1745399459681,-500.0,0.00020519,2]
[358712760,1745399459691,-500.0,0.00020519,2]
[358712761,1745399459790,-502.83752346,0.00020519,2]
[358712762,1745399459803,-510.3000423,0.00020519,2]
[358712763,1745399459813,-500.0,0.00020519,2]
[358712764,1745399459822,-500.0,0.00020519,2]
[358712765,1745399459832,-548.03,0.00020519,2]
[358712766,1745399459842,-500.0,0.00020519,2]
[358712767,1745399459851,-440.96389207,0.00020519,2]
[358712768,1745399459861,-503.15262699,0.00020519,2]
[358712769,1745399459870,-500.0,0.00020519,2]
[358712770,1745399459880,-500.0,0.00020519,2]
[358712771,1745399459890,-627.79,0.00020519,2]
[358712772,1745399459899,-500.0,0.00020519,2]
[358712773,1745399459909,-500.0,0.00020519,2]
[358712774,1745399459919,-500.0,0.00020519,2]
[358712775,1745399459933,-504.5290134,0.00020519,2]
[358712776,1745399459943,-500.0,0.00020519,2]
[358712777,1745399459953,-500.0,0.00020519,2]
[358712778,1745399459963,-346.84260259,0.00020519,2]
[358712779,1745399459973,-500.0,0.00020519,2]
[358712780,1745399459983,-500.0,0.00020519,2]
[358712781,1745399459992,-311.84839793,0.00020519,2]
[358712782,1745399460003,-170.00954078,0.00020519,2]
[358712783,1745399460013,-500.0,0.00020519,2]
[358712784,1745399460023,-500.0,0.00020519,2]
[358712785,1745399460032,-500.0,0.00020519,2]
[358712786,1745399460043,-528.92963171,0.00020519,2]
[358712787,1745399460054,-500.0,0.00020519,2]
[358712788,1745399460064,-500.0,0.00020519,2]
[358712789,1745399460074,-500.0,0.00020519,2]
[358712790,1745399460084,-500.0,0.00020519,2]
[358712791,1745399460096,-500.0,0.00020519,2]
[358712792,1745399460106,-500.0,0.00020519,2]
[358712793,1745399460117,-500.0,0.00020519,2]
[358712794,1745399460126,-500.0,0.00020519,2]
[358712795,1745399460136,-503.10412202,0.00020519,2]
[358712796,1745399460145,-1732.4,0.00020519,2]
[358712797,1745399460155,-500.0,0.00020519,2]
[358712798,1745399460165,-500.0,0.00020519,2]
[358712799,1745399460174,-500.0,0.00020519,2]
[358712800,1745399460184,-500.0,0.00020519,2]
[358712801,1745399460193,-500.0,0.00020519,2]
[358712802,1745399460203,-500.0,0.00020519,2]
[358712803,1745399460213,-556.75,0.00020519,2]
[358712804,1745399460223,-500.0,0.00020519,2]
[358712805,1745399460233,-505.05748439,0.00020519,2]
[358712806,1745399460243,-500.0,0.00020519,2]
[358712807,1745399460253,-501.16787456,0.00020519,2]
[358712808,1745399460263,-500.0,0.00020519,2]
[358712809,1745399460273,-500.0,0.00020519,2]
[358712810,1745399460284,-500.0,0.00020519,2]
[358712811,1745399460293,-500.0,0.00020519,2]
[358712812,1745399460303,-500.0,0.00020519,2]
[358712813,1745399460313,-503.93316597,0.00020519,2]
[358712814,1745399460322,-500.0,0.00020519,2]
[358712815,1745399460332,-500.0,0.00020519,2]
[358712816,1745399460342,-500.0,0.00020519,2]
[358712817,1745399460353,-500.0,0.00020519,2]
[358712818,1745399460364,-500.0,0.00020519,2]
[358712819,1745399460373,-500.0,0.00020519,2]
[358712820,1745399460384,-508.47365368,0.00020519,2]
[358712821,1745399460393,-500.0,0.00020519,2]
[358712822,1745399460403,-500.0,0.00020519,2]
[358712823,1745399460413,-500.0,0.00020519,2]
[358712824,1745399460423,-500.0,0.00020519,2]
[358712825,1745399460433,-500.0,0.00020519,2]
[358712826,1745399460442,-645.16010054,0.00020519,2]
[358712827,1745399460452,-567.05305197,0.00020519,2]
[358712828,1745399460461,-500.0,0.00020519,2]
[358712829,1745399460472,-500.0,0.00020519,2]
[358712830,1745399460482,-501.77666421,0.00020519,2]
[358712831,1745399460493,-500.0,0.00020519,2]
[358712832,1745399460502,-151.0,0.0002052,2]
[358712833,1745399460512,-151.23129126,0.0002052,2]
[358712834,1745399460522,-151.0,0.0002052,2]
[358712835,1745399460532,-500.0,0.0002052,2]
[358712836,1745399460542,-151.0,0.0002052,2]
[358712837,1745399460551,-500.0,0.00020521,2]
[358712838,1745399460561,-151.0,0.00020521,2]
[358712839,1745399460570,-1397.929081,0.00020521,2]
[358712840,1745399460580,-1397.929081,0.00020521,2]
[358712841,1745399460590,-151.0,0.00020521,2]
[358712842,1745399460600,-626.116814,0.00020521,2]
[358712843,1745399460609,-220.933653,0.00020521,2]
[358712844,1745399460619,-220.933644,0.00020521,2]
[358712845,1745399460629,-500.0,0.00020521,2]
[358712846,1745399460638,-500.0,0.00020521,2]
[358712847,1745399460648,-500.0,0.00020521,2]
[358712848,1745399460658,-1787.6,0.00020521,2]
[358712849,1745399460667,-567.212453,0.00020521,2]
[358712850,1745399460677,-567.212459,0.00020521,2]
[358712851,1745399460686,-500.0,0.00020521,2]
[358712852,1745399460696,-500.0,0.00020521,2]
[358712853,1745399460706,-500.0,0.00020521,2]
[358712854,1745399460716,-500.0,0.00020521,2]
[358712855,1745399460726,-500.0,0.00020521,2]
[358712856,1745399460737,-1299.18,0.00020521,2]
[358712857,1745399460746,-6832.67,0.00020521,2]
[358712858,1745399460755,-151.0,0.00020522,2]
[358712859,1745399460765,-151.0,0.00020522,2]
[358712860,1745399460775,-151.0,0.00020522,2]
[358712861,1745399460785,-1397.929081,0.00020522,2]
[358712862,1745399460795,-1397.929085,0.00020522,2]
[358712863,1745399460805,-277.40634,0.00020522,2]
[358712864,1745399460815,-151.0,0.00020522,2]
[358712865,1745399460824,-159.63473314,0.00020528,2]
[358712866,1745399460834,-500.0,0.00020535,2]
[358712867,1745399460843,-151.0,0.00020535,2]
[358712868,1745399460853,-151.0,0.00020535,2]
[358712869,1745399460862,-151.0,0.00020535,2]
[358712870,1745399460872,-151.0,0.00020535,2]
[358712871,1745399460882,-500.0,0.00020535,2]
[358712872,1745399460892,-500.0,0.00020535,2]
[358712873,1745399460901,-500.0,0.00020535,2]
[358712874,1745399460911,-500.0,0.00020535,2]
[358712875,1745399460921,-500.0,0.00020535,2]
[358712876,1745399460934,-500.0,0.00020535,2]
[358712877,1745399460943,-500.0,0.00020535,2]
[358712878,1745399460952,-500.0,0.00020535,2]
[358712879,1745399460963,-500.0,0.00020535,2]
[358712880,1745399460973,-500.0,0.00020535,2]
[358712881,1745399460983,-500.0,0.00020535,2]
[358712882,1745399460992,-500.0,0.00020535,2]
[358712883,1745399461001,-500.0,0.00020535,2]
[358712884,1745399461011,-500.0,0.00020535,2]
[358712885,1745399461023,-500.0,0.00020535,2]
[358712886,1745399461032,-500.0,0.00020535,2]
[358712887,1745399461041,-160.83560942,0.00020535,2]
[358712888,1745399461050,-500.0,0.00020535,2]
[358712889,1745399461059,-557.52,0.00020535,2]
[358712890,1745399461069,-544.19,0.00020535,2]
[358712891,1745399461078,-500.0,0.00020535,2]
[358712892,1745399461088,-500.0,0.00020535,2]
[358712893,1745399461097,-1000.0,0.00020535,2]
[358712894,1745399461107,-500.0,0.00020535,2]
[358712895,1745399461115,-500.0,0.00020535,2]
[358712896,1745399461125,-500.0,0.00020535,2]
[358712897,1745399461134,-500.0,0.00020535,2]
[358712898,1745399461144,-177.4105387,0.00020535,2]
[358712899,1745399461153,-500.0,0.00020535,2]
[358712900,1745399461234,-504.81649184,0.00020535,2]
[358712901,1745399461253,-500.0,0.00020535,2]
[358712902,1745399461263,-500.0,0.00020535,2]
[358712903,1745399461273,-500.0,0.00020535,2]
[358712904,1745399461282,-272.30453576,0.00020535,2]
[358712905,1745399461291,-505.99021984,0.00020535,2]
[358712906,1745399461301,-500.0,0.00020535,2]
[358712907,1745399461310,-500.0,0.00020535,2]
[358712908,1745399461320,-500.0,0.00020535,2]
[358712909,1745399461329,-500.0,0.00020535,2]
[358712910,1745399461339,-500.0,0.00020535,2]
[358712911,1745399461349,-500.0,0.00020535,2]
[358712912,1745399461359,-500.0,0.00020535,2]
[358712913,1745399461368,-512.28420454,0.00020535,2]
[358712914,1745399461378,-500.0,0.00020535,2]
[358712915,1745399461388,-505.39452619,0.00020535,2]
[358712916,1745399461397,-500.0,0.00020535,2]
[358712917,1745399461407,-500.0,0.00020535,2]
[358712918,1745399461416,-500.0,0.00020535,2]
[358712919,1745399461426,-500.0,0.00020535,2]
[358712920,1745399461435,-517.50622429,0.00020535,2]
[358712921,1745399461445,-500.0,0.00020535,2]
[358712922,1745399461454,-500.0,0.00020535,2]
[358712923,1745399461463,-151.0,0.00020537,2]
[358712924,1745399461472,-151.0,0.00020537,2]
[358712925,1745399461482,-151.0,0.00020537,2]
[358712926,1745399461491,-151.0,0.00020537,2]
[358712927,1745399461501,-151.0,0.00020537,2]
[358712928,1745399461510,-153.0,0.00020548,2]
[358712929,1745399461520,-2853.92146576,0.00020552,2]
[358712930,1745399461530,-151.0,0.00020577,2]
[358712931,1745399461540,-157.1833178,0.000206,2]
[358712932,1745399461550,-361.3287945,0.000206,2]
[358712933,1745399461560,-365.70513389,0.00020633,2]
[358712934,1745399461569,-151.0,0.00020638,2]
[358712935,1745399461578,-151.0,0.00020638,2]
[358712936,1745399461588,-275.501632,0.00020638,2]
[358712937,1745399461597,-201.491616,0.00020638,2]
[358712938,1745399461607,-4922.594169,0.00020638,2]
[358712939,1745399461616,-151.0,0.00020682,2]
[358712940,1745399461626,-500.0,0.00020691,2]
[358712941,1745399461636,-500.0,0.00020691,2]
[358712942,1745399461645,-344.14395535,0.00020691,2]
[358712943,1745399461654,-1229.18,0.00020691,2]
[358712944,1745399461665,-500.0,0.00020691,2]
[358712945,1745399461675,-500.0,0.00020691,2]
[358712946,1745399461684,-1946.64,0.00020691,2]
[358712947,1745399461694,-500.0,0.00020691,2]
[358712948,1745399461704,-500.0,0.00020691,2]
[358712949,1745399461715,-500.0,0.00020691,2]
[358712950,1745399461727,-6698.64,0.00020691,2]
[358712951,1745399461737,-500.0,0.00020691,2]
[358712952,1745399461747,-8199.47,0.00020691,2]
[358712953,1745399461757,-500.0,0.00020691,2]
[358712954,1745399461767,-500.0,0.00020691,2]
[358712955,1745399461776,-500.0,0.00020691,2]
[358712956,1745399461786,-500.0,0.00020691,2]
[358712957,1745399461795,-500.0,0.00020691,2]
[358712958,1745399461805,-500.0,0.00020691,2]
[358712959,1745399461814,-3518.2,0.00020691,2]
[358712960,1745399461823,-500.0,0.00020691,2]
[358712961,1745399461832,-500.0,0.00020691,2]
[358712962,1745399461842,-669.35,0.00020691,2]
[358712963,1745399461852,-500.0,0.00020691,2]
[358712964,1745399461861,-500.0,0.00020691,2]
[358712965,1745399461871,-500.0,0.00020691,2]
[358712966,1745399461881,-500.0,0.00020691,2]
[358712967,1745399461891,-500.0,0.00020691,2]
[358712968,1745399461900,-500.0,0.00020691,2]
[358712969,1745399461910,-500.0,0.00020691,2]
[358712970,1745399461920,-776.71,0.00020693,2]
[358712971,1745399461932,-500.0,0.00020693,2]
[358712972,1745399461941,-1131.5,0.00020693,2]
[358712973,1745399461950,-510.18273883,0.00020693,2]
[358712974,1745399461960,-500.0,0.00020693,2]
[358712975,1745399461971,-1028.11,0.00020693,2]
[358712976,1745399461980,-506.4355485,0.00020693,2]
[358712977,1745399461989,-500.0,0.00020693,2]
[358712978,1745399461998,-500.0,0.00020693,2]
[358712979,1745399462009,-500.0,0.00020693,2]
[358712980,1745399462018,-500.0,0.00020693,2]
[358712981,1745399462028,-500.0,0.00020693,2]
[358712982,1745399462039,-500.0,0.00020693,2]
[358712983,1745399462049,-638.71052818,0.00020693,2]
[358712984,1745399462058,-500.0,0.00020693,2]
[358712985,1745399462068,-587.49,0.00020693,2]
[358712986,1745399462077,-652.79,0.00020693,2]
[358712987,1745399462087,-500.0,0.00020693,2]
[358712988,1745399462097,-500.0,0.00020693,2]
[358712989,1745399462107,-500.0,0.00020693,2]
[358712990,1745399462118,-500.0,0.00020693,2]
[358712991,1745399462127,-500.0,0.00020693,2]
[358712992,1745399462137,-500.0,0.00020693,2]
[358712993,1745399462147,-500.0,0.00020693,2]
[358712994,1745399462157,-500.0,0.00020693,2]
[358712995,1745399462166,-500.0,0.00020693,2]
[358712996,1745399462176,-184.23798002,0.00020693,2]
[358712997,1745399462186,-500.0,0.00020693,2]
[358712998,1745399462195,-500.0,0.00020693,2]
[358712999,1745399462205,-500.0,0.00020693,2]
[358713000,1745399462214,-3550.8,0.00020693,2]
[358713001,1745399462223,-500.0,0.00020693,2]
[358713002,1745399462233,-570.74764126,0.00020693,2]
[358713003,1745399462242,-501.97,0.00020693,2]
[358713004,1745399462251,-157.1833178,0.000207,2]
[358713005,1745399462261,-157.2221142,0.000207,2]
[358713006,1745399462270,-633.0,0.000207,2]
[358713007,1745399462279,-460.94188252,0.00020773,2]
[358713008,1745399462289,-500.0,0.00020773,2]
[358713009,1745399462298,-500.0,0.00020773,2]
[358713010,1745399462307,-500.0,0.00020773,2]
[358713011,1745399462316,-500.0,0.00020773,2]
[358713012,1745399462325,-500.0,0.00020773,2]
[358713013,1745399462334,-500.0,0.00020773,2]
[358713014,1745399462344,-500.0,0.00020773,2]
[358713015,1745399462353,-500.0,0.00020773,2]
[358713016,1745399462362,-500.0,0.00020773,2]
[358713017,1745399462371,-500.0,0.00020773,2]
[358713018,1745399462381,-500.0,0.00020773,2]
[358713019,1745399462391,-280.30627809,0.00020773,2]
[358713020,1745399462400,-500.50600482,0.00020773,2]
[358713021,1745399462409,-500.0,0.00020773,2]
[358713022,1745399462418,-500.0,0.00020773,2]
[358713023,1745399462427,-500.49227067,0.00020773,2]
[358713024,1745399462436,-500.0,0.00020773,2]
[358713025,1745399462446,-500.0,0.00020773,2]
[358713026,1745399462455,-500.0,0.00020773,2]
[358713027,1745399462465,-500.92159915,0.00020773,2]
[358713028,1745399462475,-502.71791279,0.00020773,2]
[358713029,1745399462564,-500.0,0.00020773,2]
[358713030,1745399462574,-500.0,0.00020773,2]
[358713031,1745399462584,-500.0,0.00020773,2]
[358713032,1745399462594,-500.0,0.00020773,2]
[358713033,1745399462604,-500.0,0.00020773,2]
[358713034,1745399462614,-500.0,0.00020773,2]
[358713035,1745399462623,-500.0,0.00020773,2]
[358713036,1745399462633,-500.0,0.00020773,2]
[358713037,1745399462642,-500.24707093,0.00020773,2]
[358713038,1745399462652,-500.85633162,0.00020773,2]
[358713039,1745399462661,-500.0,0.00020773,2]
[358713040,1745399462672,-500.0,0.00020773,2]
[358713041,1745399462681,-500.0,0.00020773,2]
[358713042,1745399462691,-603.67373117,0.00020773,2]
[358713043,1745399462700,-500.0,0.00020773,2]
[358713044,1745399462710,-500.0,0.00020773,2]
[358713045,1745399462719,-500.0,0.00020773,2]
[358713046,1745399462730,-500.0,0.00020773,2]
[358713047,1745399462739,-500.0,0.00020773,2]
[358713048,1745399462749,-500.0,0.00020773,2]
[358713049,1745399462759,-500.0,0.00020773,2]
[358713050,1745399462769,-500.0,0.00020773,2]
[358713051,1745399462778,-500.0,0.00020773,2]
[358713052,1745399462788,-449.11029804,0.00020773,2]
[358713053,1745399462797,-500.0,0.00020773,2]
[358713054,1745399462807,-500.0,0.00020773,2]
[358713055,1745399462816,-500.0,0.00020773,2]
[358713056,1745399462826,-500.0,0.00020773,2]
[358713057,1745399462835,-151.0,0.00020773,2]
[358713058,1745399462844,-2331.1,0.00020792,2]
[358713059,1745399462854,-500.0,0.00020793,2]
[358713060,1745399462863,-606.25979589,0.00020793,2]
[358713061,1745399462872,-500.0,0.00020793,2]
[358713062,1745399462881,-500.0,0.00020793,2]
[358713063,1745399462891,-500.0,0.00020793,2]
[358713064,1745399462900,-500.0,0.00020793,2]
[358713065,1745399462910,-500.0,0.00020793,2]
[358713066,1745399462920,-500.0,0.00020793,2]
[358713067,1745399462935,-500.0,0.00020793,2]
[358713068,1745399462947,-500.0,0.00020793,2]
[358713069,1745399462956,-500.0,0.00020793,2]
[358713070,1745399462966,-544.7,0.00020793,2]
[358713071,1745399462978,-500.0,0.00020793,2]
[358713072,1745399462987,-500.0,0.00020793,2]
[358713073,1745399462997,-500.0,0.00020793,2]
[358713074,1745399463006,-500.0,0.00020793,2]
[358713075,1745399463015,-500.0,0.00020793,2]
[358713076,1745399463025,-500.0,0.00020793,2]
[358713077,1745399463035,-500.0,0.00020793,2]
[358713078,1745399463045,-505.42615746,0.00020793,2]
[358713079,1745399463054,-500.0,0.00020793,2]
[358713080,1745399463064,-503.67743323,0.00020793,2]
[358713081,1745399463074,-500.0,0.00020793,2]
[358713082,1745399463084,-500.0,0.00020793,2]
[358713083,1745399463096,-503.56,0.00020793,2]
[358713084,1745399463106,-633.865143,0.00020793,2]
[358713085,1745399463116,-503.17,0.00020793,2]
[358713086,1745399463126,-500.0,0.00020793,2]
[358713087,1745399463136,-500.0,0.00020793,2]
[358713088,1745399463146,-500.0,0.00020793,2]
[358713089,1745399463155,-518.43,0.00020793,2]
[358713090,1745399463165,-513.25,0.00020793,2]
[358713091,1745399463175,-500.0,0.00020793,2]
[358713092,1745399463184,-1193.04,0.00020793,2]
[358713093,1745399463193,-500.0,0.00020793,2]
[358713094,1745399463203,-500.0,0.00020793,2]
[358713095,1745399463212,-500.0,0.00020793,2]
[358713096,1745399463223,-500.0,0.00020793,2]
[358713097,1745399463233,-500.0,0.00020793,2]
[358713098,1745399463243,-500.0,0.00020793,2]
[358713099,1745399463253,-500.0,0.00020793,2]
[358713100,1745399463263,-512.16806833,0.00020793,2]
[358713101,1745399463272,-454.74322425,0.00020793,2]
[358713102,1745399463283,-512.0889834,0.00020793,2]
[358713103,1745399463292,-500.0,0.00020793,2]
[358713104,1745399463302,-500.0,0.00020793,2]
[358713105,1745399463312,-500.0,0.00020793,2]
[358713106,1745399463321,-500.0,0.00020793,2]
[358713107,1745399463331,-500.0,0.00020793,2]
[358713108,1745399463341,-500.0,0.00020793,2]
[358713109,1745399463351,-500.0,0.00020793,2]
[358713110,1745399463363,-500.0,0.00020793,2]
[358713111,1745399463372,-500.0,0.00020793,2]
[358713112,1745399463382,-500.0,0.00020793,2]
[358713113,1745399463392,-500.0,0.00020793,2]
[358713114,1745399463401,-515.7740399,0.00020793,2]
[358713115,1745399463411,-500.0,0.00020793,2]
[358713116,1745399463420,-500.0,0.00020793,2]
[358713117,1745399463429,-500.0,0.00020793,2]
[358713118,1745399463438,-328.95652783,0.00020793,2]
[358713119,1745399463448,-500.0,0.00020793,2]
[358713120,1745399463458,-500.0,0.00020793,2]
[358713121,1745399463468,-500.0,0.00020793,2]
[358713122,1745399463479,-500.0,0.00020793,2]
[358713123,1745399463489,-500.0,0.00020793,2]
[358713124,1745399463498,-500.0,0.00020793,2]
[358713125,1745399463507,-500.0,0.00020793,2]
[358713126,1745399463517,-500.0,0.00020793,2]
[358713127,1745399463527,-521.16878061,0.00020793,2]
[358713128,1745399463537,-514.90707734,0.00020793,2]
[358713129,1745399463546,-500.0,0.00020793,2]
[358713130,1745399463556,-500.0,0.00020793,2]
[358713131,1745399463566,-500.0,0.00020793,2]
[358713132,1745399463575,-160.70723505,0.00020793,2]
[358713133,1745399463584,-509.71017836,0.00020793,2]
[358713134,1745399463594,-500.0,0.00020793,2]
[358713135,1745399463604,-500.0,0.00020793,2]
[358713136,1745399463613,-500.0,0.00020793,2]
[358713137,1745399463623,-500.0,0.00020793,2]
[358713138,1745399463633,-500.0,0.00020793,2]
[358713139,1745399463642,-566.36870575,0.00020793,2]
[358713140,1745399463652,-168.44761365,0.00020793,2]
[358713141,1745399463663,-500.0,0.00020793,2]
[358713142,1745399463673,-505.40229252,0.00020793,2]
[358713143,1745399463683,-561.26736018,0.00020793,2]
[358713144,1745399463694,-500.0,0.00020793,2]
[358713145,1745399463704,-507.42145023,0.00020793,2]
[358713146,1745399463715,-500.0,0.00020793,2]
[358713147,1745399463802,-500.0,0.00020793,2]
[358713148,1745399463813,-500.0,0.00020793,2]
[358713149,1745399463822,-500.0,0.00020793,2]
[358713150,1745399463832,-500.0,0.00020793,2]
[358713151,1745399463842,-500.0,0.00020793,2]
[358713152,1745399463852,-502.96248847,0.00020793,2]
[358713153,1745399463861,-500.0,0.00020793,2]
[358713154,1745399463871,-500.0,0.00020793,2]
[358713155,1745399463880,-500.0,0.00020793,2]
[358713156,1745399463889,-500.0,0.00020793,2]
[358713157,1745399463898,-500.0,0.00020793,2]
[358713158,1745399463907,-500.0,0.00020793,2]
[358713159,1745399463917,-500.0,0.00020793,2]
[358713160,1745399463928,-500.0,0.00020793,2]
[358713161,1745399463938,-379.79500533,0.00020793,2]
[358713162,1745399463947,-500.0,0.00020793,2]
[358713163,1745399463957,-461.62174467,0.00020793,2]
[358713164,1745399463967,-500.0,0.00020793,2]
[358713165,1745399463977,-500.0,0.00020793,2]
[358713166,1745399463986,-500.0,0.00020793,2]
[358713167,1745399463996,-500.0,0.00020793,2]
[358713168,1745399464007,-500.0,0.00020793,2]
[358713169,1745399464017,-500.0,0.00020793,2]
[358713170,1745399464027,-500.0,0.00020793,2]
[358713171,1745399464036,-500.0,0.00020793,2]
[358713172,1745399464046,-500.0,0.00020793,2]
[358713173,1745399464055,-500.0,0.00020793,2]
[358713174,1745399464065,-500.0,0.00020793,2]
[358713175,1745399464074,-500.0,0.00020793,2]
[358713176,1745399464084,-500.0,0.00020793,2]
[358713177,1745399464094,-500.0,0.00020793,2]
[358713178,1745399464104,-500.0,0.00020793,2]
[358713179,1745399464113,-500.0,0.00020793,2]
[358713180,1745399464123,-506.13051729,0.00020793,2]
[358713181,1745399464133,-500.0,0.00020793,2]
[358713182,1745399464143,-500.0,0.00020793,2]
[358713183,1745399464152,-500.0,0.00020793,2]
[358713184,1745399464161,-647.79,0.00020793,2]
[358713185,1745399464171,-500.0,0.00020793,2]
[358713186,1745399464180,-508.97237113,0.00020793,2]
[358713187,1745399464190,-500.0,0.00020793,2]
[358713188,1745399464200,-514.26883737,0.00020793,2]
[358713189,1745399464210,-500.0,0.00020793,2]
[358713190,1745399464219,-500.0,0.00020793,2]
[358713191,1745399464230,-500.0,0.00020793,2]
[358713192,1745399464239,-500.0,0.00020793,2]
[358713193,1745399464249,-500.0,0.00020793,2]
[358713194,1745399464258,-500.0,0.00020793,2]
[358713195,1745399464268,-500.0,0.00020793,2]
[358713196,1745399464277,-372.63168398,0.00020793,2]
[358713197,1745399464287,-500.0,0.00020793,2]
[358713198,1745399464296,-540.5666084,0.00020793,2]
[358713199,1745399464305,-548.03,0.00020793,2]
[358713200,1745399464327,-500.0,0.00020793,2]
[358713201,1745399464346,-500.0,0.00020793,2]
[358713202,1745399464364,-500.0,0.00020793,2]
[358713203,1745399464383,-362.93827384,0.00020793,2]
[358713204,1745399464403,-500.0,0.00020793,2]
[358713205,1745399464421,-500.0,0.00020793,2]
[358713206,1745399464439,-503.75151858,0.00020793,2]
[358713207,1745399464454,-500.0,0.00020793,2]
[358713208,1745399464471,-500.0,0.00020793,2]
[358713209,1745399464491,-359.4538353,0.00020793,2]
[358713210,1745399464515,-500.0,0.00020793,2]
[358713211,1745399464531,-500.0,0.00020793,2]
[358713212,1745399464547,-500.0,0.00020793,2]
[358713213,1745399464568,-500.0,0.00020793,2]
[358713214,1745399464585,-500.0,0.00020793,2]
[358713215,1745399464602,-574.05674048,0.00020793,2]
[358713216,1745399464617,-500.0,0.00020793,2]
[358713217,1745399464631,-1732.4,0.00020793,2]
[358713218,1745399464646,-294.95123013,0.00020793,2]
[358713219,1745399464662,-500.0,0.00020793,2]
[358713220,1745399464678,-500.0,0.00020793,2]
[358713221,1745399464693,-500.0,0.00020793,2]
[358713222,1745399464708,-500.0,0.00020793,2]
[358713223,1745399464723,-556.75,0.00020793,2]
[358713224,1745399464738,-161.40809348,0.00020793,2]
[358713225,1745399464753,-502.88507804,0.00020793,2]
[358713226,1745399464769,-500.0,0.00020793,2]
[358713227,1745399464783,-500.0,0.00020793,2]
[358713228,1745399464798,-500.0,0.00020793,2]
[358713229,1745399464812,-500.0,0.00020793,2]
[358713230,1745399464828,-500.0,0.00020793,2]
[358713231,1745399464842,-500.0,0.00020793,2]
[358713232,1745399464857,-367.18,0.00020793,2]
[358713233,1745399464872,-500.0,0.00020793,2]
[358713234,1745399464886,-500.0,0.00020793,2]
[358713235,1745399464901,-500.0,0.00020793,2]
[358713236,1745399464916,-500.0,0.00020793,2]
[358713237,1745399464932,-500.0,0.00020793,2]
[358713238,1745399464946,-500.0,0.00020793,2]
[358713239,1745399464961,-500.0,0.00020793,2]
[358713240,1745399464978,-500.0,0.00020793,2]
[358713241,1745399464993,-500.0,0.00020793,2]
[358713242,1745399465009,-500.0,0.00020793,2]
[358713243,1745399465024,-198.0,0.00020794,2]
[358713244,1745399465038,-198.0,0.00020794,2]
[358713245,1745399465053,-500.0,0.00020794,2]
[358713246,1745399465068,-198.13125509,0.00020794,2]
[358713247,1745399465082,-153.0,0.00020795,2]